[Event "Titled Tuesday Blitz April 19 Early 2022"]
[White "Richter, Nils"]
[Black "Trost, Edvin"]
[WhiteFideId "12990809"]
[BlackFideId "1729519"]
[WhiteElo "2243"]
[BlackElo "2160"]
[Result "0-1"]
[Round "07"]
[TimeControl "180+1"]
[Date "2022.04.19"]
[WhiteClock "0:00:37"]
[BlackClock "0:00:17"]

1. c4 {[%clk 0:03:00]}  b5 {[%clk 0:02:47]} 2. cxb5 {[%clk 0:03:00]}  Bb7 {[%clk 0:02:45]} 3. Nc3 {[%clk 0:02:59]}  d5 {[%clk 0:02:44]} 4. d4 {[%clk 0:02:59]}  Nf6 {[%clk 0:02:42]} 5. Nf3 {[%clk 0:02:58]}  Nbd7 {[%clk 0:02:41]} 6. Bf4 {[%clk 0:02:58]}  e6 {[%clk 0:02:40]} 7. e3 {[%clk 0:02:58]}  Bb4 {[%clk 0:02:39]} 8. a3 {[%clk 0:02:50]}  Bd6 {[%clk 0:02:34]} 9. Bd3 {[%clk 0:02:45]}  Ne4 {[%clk 0:02:31]} 10. O-O {[%clk 0:02:43]}  f5 {[%clk 0:02:30]} 11. Ne5 {[%clk 0:02:41]}  O-O {[%clk 0:02:24]} 12. f3 {[%clk 0:02:31]}  Nxc3 {[%clk 0:02:20]} 13. bxc3 {[%clk 0:02:32]}  g5 {[%clk 0:02:20]} 14. Bg3 {[%clk 0:02:24]}  f4 {[%clk 0:02:19]} 15. Nxd7 {[%clk 0:02:11]}  Qxd7 {[%clk 0:02:14]} 16. Bf2 {[%clk 0:02:09]}  e5 {[%clk 0:02:10]} 17. Qc2 {[%clk 0:01:59]}  Rae8 {[%clk 0:02:04]} 18. e4 {[%clk 0:01:56]}  exd4 {[%clk 0:01:50]} 19. Bxd4 {[%clk 0:01:55]}  dxe4 {[%clk 0:01:50]} 20. Bc4+ {[%clk 0:01:55]}  Rf7 {[%clk 0:01:47]} 21. fxe4 {[%clk 0:01:50]}  Bxe4 {[%clk 0:01:43]} 22. Qb3 {[%clk 0:01:50]}  Bg6 {[%clk 0:01:38]} 23. Rae1 {[%clk 0:01:47]}  Kf8 {[%clk 0:01:36]} 24. Rxe8+ {[%clk 0:01:46]}  Qxe8 {[%clk 0:01:34]} 25. Bxf7 {[%clk 0:01:41]}  Bxf7 {[%clk 0:01:35]} 26. Qb1 {[%clk 0:01:37]}  Bg6 {[%clk 0:01:33]} 27. Qd1 {[%clk 0:01:33]}  Qxb5 {[%clk 0:01:30]} 28. Re1 {[%clk 0:01:29]}  a5 {[%clk 0:01:08]} 29. Qe2 {[%clk 0:01:28]}  Qxe2 {[%clk 0:00:48]} 30. Rxe2 {[%clk 0:01:29]}  a4 {[%clk 0:00:49]} 31. Be5 {[%clk 0:01:22]}  Bxa3 {[%clk 0:00:46]} 32. Bxc7 {[%clk 0:01:21]}  Bc5+ {[%clk 0:00:46]} 33. Kh1 {[%clk 0:01:20]}  a3 {[%clk 0:00:44]} 34. Ba5 {[%clk 0:01:09]}  Bb1 {[%clk 0:00:42]} 35. c4 {[%clk 0:01:05]}  Bd3 {[%clk 0:00:24]} 36. Ra2 {[%clk 0:00:51]}  Bxc4 {[%clk 0:00:22]} 37. Rc2 {[%clk 0:00:51]}  a2 {[%clk 0:00:22]} 38. Bc3 {[%clk 0:00:49]}  Bb3 {[%clk 0:00:22]} 39. Rc1 {[%clk 0:00:45]}  Kf7 {[%clk 0:00:19]} 40. Ba1 {[%clk 0:00:43]}  Be7 {[%clk 0:00:17]} 41. h3 {[%clk 0:00:41]}  Be6 {[%clk 0:00:17]} 42. Kg1 {[%clk 0:00:41]}  Bf5 {[%clk 0:00:18]} 43. Kf2 {[%clk 0:00:39]}  Bb1 {[%clk 0:00:17]} 44. Rc7 {[%clk 0:00:39]}  Ke6 {[%clk 0:00:17]} 45. Ra7 {[%clk 0:00:37]}  Bc5+ {[%clk 0:00:17]} 0-1


[Site "https://www.chess.com"]

[Event "Titled Tuesday Blitz April 19 Early 2022"]
[White "Rom, Jasper"]
[Black "Stefanov, Plamen"]
[WhiteFideId "2023733"]
[BlackFideId "2900980"]
[WhiteElo "2233"]
[BlackElo "2137"]
[Result "1-0"]
[Round "07"]
[TimeControl "180+1"]
[Date "2022.04.19"]
[WhiteClock "0:00:10"]
[BlackClock "0:00:16"]

1. e4 {[%clk 0:03:00]}  d5 {[%clk 0:02:54]} 2. exd5 {[%clk 0:03:00]}  Nf6 {[%clk 0:02:53]} 3. d4 {[%clk 0:02:55]}  Nxd5 {[%clk 0:02:53]} 4. c4 {[%clk 0:02:54]}  Nb6 {[%clk 0:02:53]} 5. Nc3 {[%clk 0:02:51]}  e5 {[%clk 0:02:53]} 6. dxe5 {[%clk 0:02:41]}  Qxd1+ {[%clk 0:02:52]} 7. Nxd1 {[%clk 0:02:41]}  Nc6 {[%clk 0:02:52]} 8. Nf3 {[%clk 0:02:29]}  Be6 {[%clk 0:02:52]} 9. b3 {[%clk 0:02:27]}  Bb4+ {[%clk 0:02:53]} 10. Bd2 {[%clk 0:02:25]}  Bxd2+ {[%clk 0:02:53]} 11. Kxd2 {[%clk 0:02:25]}  O-O-O+ {[%clk 0:02:52]} 12. Kc3 {[%clk 0:02:23]}  Bg4 {[%clk 0:02:45]} 13. Be2 {[%clk 0:02:03]}  Bxf3 {[%clk 0:02:27]} 14. Bxf3 {[%clk 0:02:01]}  Nxe5 {[%clk 0:02:28]} 15. Be2 {[%clk 0:01:58]}  Rhe8 {[%clk 0:02:22]} 16. Ne3 {[%clk 0:01:57]}  g6 {[%clk 0:02:21]} 17. Rad1 {[%clk 0:01:55]}  f5 {[%clk 0:02:17]} 18. g3 {[%clk 0:01:50]}  c6 {[%clk 0:02:16]} 19. Rhe1 {[%clk 0:01:30]}  Nf7 {[%clk 0:01:44]} 20. c5 {[%clk 0:01:16]}  Nd7 {[%clk 0:01:42]} 21. b4 {[%clk 0:01:13]}  Ng5 {[%clk 0:01:41]} 22. Bd3 {[%clk 0:00:58]}  Nf3 {[%clk 0:01:39]} 23. Re2 {[%clk 0:00:40]}  Nde5 {[%clk 0:01:35]} 24. h4 {[%clk 0:00:25]}  a6 {[%clk 0:00:42]} 25. Bc2 {[%clk 0:00:12]}  h5 {[%clk 0:00:39]} 26. Rxd8+ {[%clk 0:00:09]}  Rxd8 {[%clk 0:00:39]} 27. Nc4 {[%clk 0:00:06]}  Nxc4 {[%clk 0:00:32]} 28. Kxc4 {[%clk 0:00:06]}  Rd2 {[%clk 0:00:25]} 29. Rxd2 {[%clk 0:00:06]}  Nxd2+ {[%clk 0:00:25]} 30. Kd4 {[%clk 0:00:05]}  Nf3+ {[%clk 0:00:26]} 31. Ke3 {[%clk 0:00:05]}  Kd7 {[%clk 0:00:26]} 32. Kxf3 {[%clk 0:00:04]}  Ke6 {[%clk 0:00:22]} 33. Bb3+ {[%clk 0:00:04]}  Ke5 {[%clk 0:00:22]} 34. Ke3 {[%clk 0:00:05]}  Kf6 {[%clk 0:00:19]} 35. f4 {[%clk 0:00:05]}  Ke7 {[%clk 0:00:18]} 36. Kd4 {[%clk 0:00:05]}  Kd7 {[%clk 0:00:17]} 37. Ke5 {[%clk 0:00:05]}  Ke7 {[%clk 0:00:18]} 38. Bc4 {[%clk 0:00:04]}  Kd7 {[%clk 0:00:15]} 39. Kf6 {[%clk 0:00:04]}  Kc7 {[%clk 0:00:15]} 40. Kxg6 {[%clk 0:00:04]}  b5 {[%clk 0:00:16]} 41. Bb3 {[%clk 0:00:04]}  a5 {[%clk 0:00:15]} 42. a3 {[%clk 0:00:03]}  axb4 {[%clk 0:00:12]} 43. axb4 {[%clk 0:00:03]}  Kd7 {[%clk 0:00:13]} 44. Kxf5 {[%clk 0:00:02]}  Ke7 {[%clk 0:00:14]} 45. Kg5 {[%clk 0:00:03]}  Kf8 {[%clk 0:00:14]} 46. Kxh5 {[%clk 0:00:04]}  Kg7 {[%clk 0:00:15]} 47. Kg5 {[%clk 0:00:04]}  Kh7 {[%clk 0:00:15]} 48. h5 {[%clk 0:00:05]}  Kg7 {[%clk 0:00:15]} 49. g4 {[%clk 0:00:06]}  Kh7 {[%clk 0:00:16]} 50. f5 {[%clk 0:00:07]}  Kg7 {[%clk 0:00:16]} 51. f6+ {[%clk 0:00:08]}  Kh7 {[%clk 0:00:17]} 52. Kf5 {[%clk 0:00:09]}  Kh8 {[%clk 0:00:16]} 53. g5 {[%clk 0:00:09]}  Kh7 {[%clk 0:00:16]} 54. g6+ {[%clk 0:00:09]}  Kh8 {[%clk 0:00:15]} 55. g7+ {[%clk 0:00:09]}  Kh7 {[%clk 0:00:15]} 56. g8=Q+ {[%clk 0:00:09]}  Kh6 {[%clk 0:00:16]} 57. Qg6# {[%clk 0:00:10]} 1-0


[Site "https://www.chess.com"]

[Event "Titled Tuesday Blitz April 19 Early 2022"]
[White "Samunenkov, Ihor"]
[Black "Kamsky, Gata"]
[WhiteFideId "14187086"]
[BlackFideId "2000024"]
[WhiteElo "2409"]
[BlackElo "2645"]
[Result "1/2-1/2"]
[Round "07"]
[TimeControl "180+1"]
[Date "2022.04.19"]
[WhiteClock "0:00:06"]
[BlackClock "0:00:15"]

1. d4 {[%clk 0:02:59]}  Nf6 {[%clk 0:02:58]} 2. c4 {[%clk 0:02:59]}  e6 {[%clk 0:02:58]} 3. Nc3 {[%clk 0:02:59]}  Bb4 {[%clk 0:02:56]} 4. e3 {[%clk 0:03:00]}  O-O {[%clk 0:02:55]} 5. Bd2 {[%clk 0:03:00]}  b6 {[%clk 0:02:51]} 6. Nf3 {[%clk 0:02:57]}  Bb7 {[%clk 0:02:50]} 7. Bd3 {[%clk 0:02:51]}  c5 {[%clk 0:02:45]} 8. a3 {[%clk 0:02:45]}  Bxc3 {[%clk 0:02:33]} 9. Bxc3 {[%clk 0:02:44]}  d6 {[%clk 0:02:27]} 10. O-O {[%clk 0:02:40]}  Nbd7 {[%clk 0:02:26]} 11. b3 {[%clk 0:02:35]}  Qe7 {[%clk 0:02:24]} 12. Qc2 {[%clk 0:02:03]}  Bxf3 {[%clk 0:02:19]} 13. gxf3 {[%clk 0:02:03]}  e5 {[%clk 0:02:17]} 14. dxe5 {[%clk 0:01:55]}  dxe5 {[%clk 0:02:16]} 15. Bf5 {[%clk 0:01:44]}  Rfe8 {[%clk 0:02:10]} 16. Rad1 {[%clk 0:01:42]}  Nf8 {[%clk 0:02:05]} 17. Kh1 {[%clk 0:01:21]}  Rad8 {[%clk 0:01:58]} 18. Rxd8 {[%clk 0:01:18]}  Qxd8 {[%clk 0:01:54]} 19. Rd1 {[%clk 0:01:12]}  Qc7 {[%clk 0:01:53]} 20. Qd2 {[%clk 0:00:52]}  Qb7 {[%clk 0:01:51]} 21. Kg2 {[%clk 0:00:51]}  Ng6 {[%clk 0:01:50]} 22. Bxg6 {[%clk 0:00:51]}  hxg6 {[%clk 0:01:44]} 23. Qd6 {[%clk 0:00:50]}  Re6 {[%clk 0:01:39]} 24. Qd8+ {[%clk 0:00:49]}  Re8 {[%clk 0:01:38]} 25. Qd6 {[%clk 0:00:49]}  Re6 {[%clk 0:01:15]} 26. Qd8+ {[%clk 0:00:49]}  Kh7 {[%clk 0:01:13]} 27. Qf8 {[%clk 0:00:46]}  Re8 {[%clk 0:01:03]} 28. Qd6 {[%clk 0:00:45]}  Re6 {[%clk 0:00:50]} 29. Qf8 {[%clk 0:00:45]}  e4 {[%clk 0:00:49]} 30. f4 {[%clk 0:00:22]}  Re8 {[%clk 0:00:44]} 31. Qd6 {[%clk 0:00:22]}  Qc8 {[%clk 0:00:43]} 32. Bxf6 {[%clk 0:00:12]}  Qg4+ {[%clk 0:00:42]} 33. Kf1 {[%clk 0:00:13]}  gxf6 {[%clk 0:00:38]} 34. Qd7 {[%clk 0:00:13]}  Qe6 {[%clk 0:00:28]} 35. Qxe6 {[%clk 0:00:13]}  Rxe6 {[%clk 0:00:28]} 36. Rd7 {[%clk 0:00:14]}  a5 {[%clk 0:00:27]} 37. Rxf7+ {[%clk 0:00:14]}  Kh6 {[%clk 0:00:27]} 38. Rd7 {[%clk 0:00:08]}  f5 {[%clk 0:00:27]} 39. h3 {[%clk 0:00:05]}  Rc6 {[%clk 0:00:25]} 40. Kg2 {[%clk 0:00:04]}  Rc8 {[%clk 0:00:24]} 41. Rd6 {[%clk 0:00:03]}  Rb8 {[%clk 0:00:23]} 42. Kf1 {[%clk 0:00:04]}  a4 {[%clk 0:00:23]} 43. bxa4 {[%clk 0:00:03]}  Ra8 {[%clk 0:00:24]} 44. Rxb6 {[%clk 0:00:03]}  Rxa4 {[%clk 0:00:24]} 45. Rc6 {[%clk 0:00:02]}  Rxc4 {[%clk 0:00:24]} 46. Kg2 {[%clk 0:00:02]}  Rc2 {[%clk 0:00:22]} 47. a4 {[%clk 0:00:03]}  c4 {[%clk 0:00:22]} 48. a5 {[%clk 0:00:03]}  c3 {[%clk 0:00:22]} 49. a6 {[%clk 0:00:04]}  Ra2 {[%clk 0:00:22]} 50. Rxc3 {[%clk 0:00:04]}  Rxa6 {[%clk 0:00:22]} 51. Kg3 {[%clk 0:00:05]}  Ra2 {[%clk 0:00:21]} 52. Rc8 {[%clk 0:00:04]}  Rb2 {[%clk 0:00:20]} 53. Rh8+ {[%clk 0:00:04]}  Kg7 {[%clk 0:00:20]} 54. Ra8 {[%clk 0:00:05]}  Kh6 {[%clk 0:00:20]} 55. Ra6 {[%clk 0:00:05]}  Rc2 {[%clk 0:00:19]} 56. Rd6 {[%clk 0:00:05]}  Rb2 {[%clk 0:00:19]} 57. f3 {[%clk 0:00:03]}  exf3 {[%clk 0:00:19]} 58. Kxf3 {[%clk 0:00:04]}  Rh2 {[%clk 0:00:19]} 59. Kg3 {[%clk 0:00:05]}  Re2 {[%clk 0:00:19]} 60. Re6 {[%clk 0:00:05]}  Kg7 {[%clk 0:00:19]} 61. Re7+ {[%clk 0:00:05]}  Kf6 {[%clk 0:00:19]} 62. Re8 {[%clk 0:00:06]}  Kf7 {[%clk 0:00:19]} 63. Re5 {[%clk 0:00:06]}  Kf6 {[%clk 0:00:19]} 64. h4 {[%clk 0:00:07]}  Re1 {[%clk 0:00:18]} 65. Kf2 {[%clk 0:00:07]}  Rh1 {[%clk 0:00:18]} 66. Kg3 {[%clk 0:00:08]}  Rg1+ {[%clk 0:00:19]} 67. Kh2 {[%clk 0:00:08]}  Rg4 {[%clk 0:00:18]} 68. Kh3 {[%clk 0:00:08]}  Rg1 {[%clk 0:00:18]} 69. Ra5 {[%clk 0:00:08]}  Rh1+ {[%clk 0:00:18]} 70. Kg3 {[%clk 0:00:08]}  Rg1+ {[%clk 0:00:18]} 71. Kh2 {[%clk 0:00:09]}  Re1 {[%clk 0:00:18]} 72. Ra6+ {[%clk 0:00:09]}  Kg7 {[%clk 0:00:18]} 73. Ra3 {[%clk 0:00:08]}  Kh6 {[%clk 0:00:18]} 74. Kg3 {[%clk 0:00:05]}  Rg1+ {[%clk 0:00:18]} 75. Kh2 {[%clk 0:00:04]}  Re1 {[%clk 0:00:18]} 76. Kg3 {[%clk 0:00:05]}  Rg1+ {[%clk 0:00:18]} 77. Kh2 {[%clk 0:00:06]}  Rg4 {[%clk 0:00:18]} 78. Kh3 {[%clk 0:00:06]}  Kh5 {[%clk 0:00:18]} 79. Ra8 {[%clk 0:00:06]}  Rxh4+ {[%clk 0:00:18]} 80. Kg3 {[%clk 0:00:07]}  Rg4+ {[%clk 0:00:18]} 81. Kf3 {[%clk 0:00:07]}  Kh6 {[%clk 0:00:18]} 82. Rh8+ {[%clk 0:00:06]}  Kg7 {[%clk 0:00:18]} 83. Ra8 {[%clk 0:00:06]}  Rh4 {[%clk 0:00:18]} 84. e4 {[%clk 0:00:05]}  Rh3+ {[%clk 0:00:16]} 85. Kg2 {[%clk 0:00:05]}  Rh4 {[%clk 0:00:16]} 86. Ra7+ {[%clk 0:00:04]}  Kg8 {[%clk 0:00:15]} 87. exf5 {[%clk 0:00:04]}  Rxf4 {[%clk 0:00:14]} 88. fxg6 {[%clk 0:00:04]}  Rg4+ {[%clk 0:00:14]} 89. Kf3 {[%clk 0:00:04]}  Rxg6 {[%clk 0:00:15]} 90. Ra8+ {[%clk 0:00:05]}  Kg7 {[%clk 0:00:15]} 91. Ra7+ {[%clk 0:00:06]}  Kf6 {[%clk 0:00:15]} 92. Ra6+ {[%clk 0:00:06]} 1/2-1/2


[Site "https://www.chess.com"]

[Event "Titled Tuesday Blitz April 19 Early 2022"]
[White "Sapunov, Evgeny"]
[Black "Aroesti, Roee"]
[WhiteFideId "4126661"]
[BlackFideId "2817144"]
[WhiteElo "2470"]
[BlackElo "2068"]
[Result "1-0"]
[Round "07"]
[TimeControl "180+1"]
[Date "2022.04.19"]
[WhiteClock "0:00:32"]
[BlackClock "0:00:05"]

1. c4 {[%clk 0:03:00]}  Nf6 {[%clk 0:02:59]} 2. Nf3 {[%clk 0:03:00]}  g6 {[%clk 0:02:57]} 3. Nc3 {[%clk 0:03:00]}  Bg7 {[%clk 0:02:57]} 4. e4 {[%clk 0:03:00]}  d6 {[%clk 0:02:57]} 5. d4 {[%clk 0:03:01]}  O-O {[%clk 0:02:56]} 6. Be2 {[%clk 0:03:01]}  Nc6 {[%clk 0:02:57]} 7. d5 {[%clk 0:03:01]}  Nb8 {[%clk 0:02:55]} 8. O-O {[%clk 0:03:01]}  Nbd7 {[%clk 0:02:50]} 9. Re1 {[%clk 0:02:56]}  c6 {[%clk 0:02:50]} 10. Bg5 {[%clk 0:02:56]}  Qc7 {[%clk 0:02:44]} 11. Qd2 {[%clk 0:02:54]}  Re8 {[%clk 0:02:33]} 12. Rac1 {[%clk 0:02:50]}  a6 {[%clk 0:02:27]} 13. a3 {[%clk 0:02:48]}  Nc5 {[%clk 0:02:22]} 14. Qc2 {[%clk 0:02:48]}  a5 {[%clk 0:02:16]} 15. b4 {[%clk 0:02:47]}  axb4 {[%clk 0:02:15]} 16. axb4 {[%clk 0:02:47]}  Ncd7 {[%clk 0:02:08]} 17. Qb3 {[%clk 0:02:44]}  Ng4 {[%clk 0:01:53]} 18. h3 {[%clk 0:02:38]}  Nge5 {[%clk 0:01:51]} 19. Nd2 {[%clk 0:02:38]}  h6 {[%clk 0:01:44]} 20. Be3 {[%clk 0:02:38]}  g5 {[%clk 0:01:44]} 21. c5 {[%clk 0:02:28]}  Ng6 {[%clk 0:01:32]} 22. cxd6 {[%clk 0:02:21]}  Qxd6 {[%clk 0:01:33]} 23. Red1 {[%clk 0:02:08]}  Qf6 {[%clk 0:01:31]} 24. Bf1 {[%clk 0:02:01]}  Nde5 {[%clk 0:01:29]} 25. b5 {[%clk 0:01:59]}  Bd7 {[%clk 0:01:13]} 26. dxc6 {[%clk 0:01:57]}  bxc6 {[%clk 0:01:14]} 27. b6 {[%clk 0:01:57]}  g4 {[%clk 0:01:04]} 28. hxg4 {[%clk 0:01:24]}  Nxg4 {[%clk 0:00:59]} 29. Bc5 {[%clk 0:01:25]}  N6e5 {[%clk 0:00:48]} 30. f3 {[%clk 0:01:17]}  Be6 {[%clk 0:00:33]} 31. Qb4 {[%clk 0:01:13]}  Rad8 {[%clk 0:00:22]} 32. Ncb1 {[%clk 0:01:02]}  Rxd2 {[%clk 0:00:12]} 33. Nxd2 {[%clk 0:01:01]}  Qh4 {[%clk 0:00:12]} 34. fxg4 {[%clk 0:01:00]}  Bxg4 {[%clk 0:00:10]} 35. Re1 {[%clk 0:00:49]}  Bf6 {[%clk 0:00:07]} 36. Bf2 {[%clk 0:00:46]}  Qh5 {[%clk 0:00:06]} 37. b7 {[%clk 0:00:43]}  Nd7 {[%clk 0:00:04]} 38. e5 {[%clk 0:00:39]}  Bxe5 {[%clk 0:00:03]} 39. Rxe5 {[%clk 0:00:39]}  Nxe5 {[%clk 0:00:04]} 40. b8=Q {[%clk 0:00:38]}  Rxb8 {[%clk 0:00:03]} 41. Qxb8+ {[%clk 0:00:38]}  Kh7 {[%clk 0:00:04]} 42. Qb1+ {[%clk 0:00:36]}  Bf5 {[%clk 0:00:04]} 43. Qb3 {[%clk 0:00:35]}  Ng4 {[%clk 0:00:03]} 44. Qg3 {[%clk 0:00:32]}  e5 {[%clk 0:00:02]} 45. Be2 {[%clk 0:00:30]}  e4 {[%clk 0:00:02]} 46. Nxe4 {[%clk 0:00:29]}  Qg6 {[%clk 0:00:01]} 47. Bxg4 {[%clk 0:00:27]}  Bxg4 {[%clk 0:00:02]} 48. Qxg4 {[%clk 0:00:27]}  Qxg4 {[%clk 0:00:01]} 49. Nf6+ {[%clk 0:00:27]}  Kg6 {[%clk 0:00:02]} 50. Nxg4 {[%clk 0:00:28]}  f5 {[%clk 0:00:03]} 51. Ne3 {[%clk 0:00:27]}  Kh5 {[%clk 0:00:04]} 52. Rc5 {[%clk 0:00:27]}  Kg6 {[%clk 0:00:01]} 53. Rxf5 {[%clk 0:00:27]}  Kh7 {[%clk 0:00:01]} 54. Rc5 {[%clk 0:00:28]}  Kg8 {[%clk 0:00:02]} 55. g4 {[%clk 0:00:28]}  Kg7 {[%clk 0:00:03]} 56. Kg2 {[%clk 0:00:29]}  Kh7 {[%clk 0:00:04]} 57. Kg3 {[%clk 0:00:30]}  Kh8 {[%clk 0:00:05]} 58. Kf4 {[%clk 0:00:30]}  Kg8 {[%clk 0:00:05]} 59. Rxc6 {[%clk 0:00:31]}  Kg7 {[%clk 0:00:06]} 60. Kf5 {[%clk 0:00:31]}  Kh7 {[%clk 0:00:07]} 61. Rc7+ {[%clk 0:00:32]}  Kg8 {[%clk 0:00:07]} 62. Kf6 {[%clk 0:00:32]}  h5 {[%clk 0:00:07]} 63. gxh5 {[%clk 0:00:32]}  Kf8 {[%clk 0:00:05]} 64. Rc8# {[%clk 0:00:32]} 1-0


[Site "https://www.chess.com"]

[Event "Titled Tuesday Blitz April 19 Early 2022"]
[White "Sarkar, Justin"]
[Black "Hirneise, Jens"]
[WhiteFideId "2010011"]
[BlackFideId "24614734"]
[WhiteElo "2038"]
[BlackElo "2359"]
[Result "1-0"]
[Round "07"]
[TimeControl "180+1"]
[Date "2022.04.19"]
[WhiteClock "0:00:04"]
[BlackClock "0:01:22"]

1. d4 {[%clk 0:02:51]}  d5 {[%clk 0:02:58]} 2. c4 {[%clk 0:02:50]}  e6 {[%clk 0:02:57]} 3. Nf3 {[%clk 0:02:48]}  Nf6 {[%clk 0:02:56]} 4. Nc3 {[%clk 0:02:46]}  Bb4 {[%clk 0:02:54]} 5. cxd5 {[%clk 0:02:37]}  exd5 {[%clk 0:02:52]} 6. Bf4 {[%clk 0:02:37]}  O-O {[%clk 0:02:52]} 7. e3 {[%clk 0:02:36]}  c6 {[%clk 0:02:50]} 8. Bd3 {[%clk 0:02:35]}  Re8 {[%clk 0:02:49]} 9. O-O {[%clk 0:02:34]}  Bg4 {[%clk 0:02:45]} 10. h3 {[%clk 0:02:31]}  Bh5 {[%clk 0:02:45]} 11. g4 {[%clk 0:02:19]}  Bg6 {[%clk 0:02:45]} 12. Ne5 {[%clk 0:02:14]}  Nfd7 {[%clk 0:02:42]} 13. Nxg6 {[%clk 0:02:10]}  hxg6 {[%clk 0:02:41]} 14. Qb3 {[%clk 0:01:59]}  Bxc3 {[%clk 0:02:27]} 15. bxc3 {[%clk 0:01:52]}  b6 {[%clk 0:02:24]} 16. c4 {[%clk 0:01:49]}  g5 {[%clk 0:02:06]} 17. Bg3 {[%clk 0:01:36]}  Nf6 {[%clk 0:02:05]} 18. Rac1 {[%clk 0:01:20]}  Ne4 {[%clk 0:02:00]} 19. Bxe4 {[%clk 0:01:13]}  dxe4 {[%clk 0:02:01]} 20. c5 {[%clk 0:01:08]}  b5 {[%clk 0:01:56]} 21. Rfd1 {[%clk 0:01:00]}  Qc8 {[%clk 0:01:40]} 22. d5 {[%clk 0:00:53]}  cxd5 {[%clk 0:01:40]} 23. Qxd5 {[%clk 0:00:44]}  Nc6 {[%clk 0:01:38]} 24. Qxg5 {[%clk 0:00:43]}  Nb4 {[%clk 0:01:38]} 25. Be5 {[%clk 0:00:32]}  Rxe5 {[%clk 0:01:36]} 26. Qxe5 {[%clk 0:00:32]}  Nd3 {[%clk 0:01:37]} 27. Qxe4 {[%clk 0:00:29]}  Nxc1 {[%clk 0:01:37]} 28. Rxc1 {[%clk 0:00:29]}  Rb8 {[%clk 0:01:38]} 29. c6 {[%clk 0:00:29]}  Qc7 {[%clk 0:01:37]} 30. Qd5 {[%clk 0:00:27]}  b4 {[%clk 0:01:36]} 31. Qd7 {[%clk 0:00:18]}  Rc8 {[%clk 0:01:35]} 32. Qxc7 {[%clk 0:00:17]}  Rxc7 {[%clk 0:01:36]} 33. Kf1 {[%clk 0:00:16]}  Kf8 {[%clk 0:01:33]} 34. Ke2 {[%clk 0:00:16]}  Ke7 {[%clk 0:01:33]} 35. Kd3 {[%clk 0:00:13]}  Kd6 {[%clk 0:01:33]} 36. Rc4 {[%clk 0:00:12]}  a5 {[%clk 0:01:33]} 37. f4 {[%clk 0:00:08]}  g6 {[%clk 0:01:32]} 38. e4 {[%clk 0:00:07]}  f6 {[%clk 0:01:31]} 39. h4 {[%clk 0:00:06]}  Rc8 {[%clk 0:01:31]} 40. c7 {[%clk 0:00:06]}  Kd7 {[%clk 0:01:28]} 41. Kc2 {[%clk 0:00:05]}  a4 {[%clk 0:01:25]} 42. Kd3 {[%clk 0:00:04]}  Kd6 {[%clk 0:01:18]} 43. h5 {[%clk 0:00:04]}  gxh5 {[%clk 0:01:18]} 44. gxh5 {[%clk 0:00:04]}  Kd7 {[%clk 0:01:18]} 45. h6 {[%clk 0:00:04]}  b3 {[%clk 0:01:11]} 46. axb3 {[%clk 0:00:04]}  a3 {[%clk 0:01:12]} 47. Kc2 {[%clk 0:00:03]}  f5 {[%clk 0:01:10]} 48. exf5 {[%clk 0:00:03]}  Kd6 {[%clk 0:01:11]} 49. Kb1 {[%clk 0:00:03]}  Kd7 {[%clk 0:01:12]} 50. Ka2 {[%clk 0:00:02]}  Ke7 {[%clk 0:01:10]} 51. h7 {[%clk 0:00:02]}  Kd7 {[%clk 0:01:09]} 52. h8=Q {[%clk 0:00:02]}  Rxh8 {[%clk 0:01:10]} 53. c8=Q+ {[%clk 0:00:02]}  Rxc8 {[%clk 0:01:10]} 54. Rxc8 {[%clk 0:00:02]}  Kxc8 {[%clk 0:01:11]} 55. Kxa3 {[%clk 0:00:02]}  Kd7 {[%clk 0:01:12]} 56. b4 {[%clk 0:00:02]}  Ke7 {[%clk 0:01:13]} 57. b5 {[%clk 0:00:02]}  Kf6 {[%clk 0:01:14]} 58. b6 {[%clk 0:00:02]}  Kxf5 {[%clk 0:01:15]} 59. b7 {[%clk 0:00:03]}  Kxf4 {[%clk 0:01:16]} 60. b8=Q+ {[%clk 0:00:03]}  Ke4 {[%clk 0:01:17]} 61. Qd6 {[%clk 0:00:03]}  Kf5 {[%clk 0:01:17]} 62. Kb4 {[%clk 0:00:03]}  Ke4 {[%clk 0:01:18]} 63. Kc4 {[%clk 0:00:03]}  Kf5 {[%clk 0:01:19]} 64. Qe7 {[%clk 0:00:03]}  Kg4 {[%clk 0:01:20]} 65. Kd4 {[%clk 0:00:03]}  Kf5 {[%clk 0:01:20]} 66. Qf7+ {[%clk 0:00:03]}  Kg4 {[%clk 0:01:21]} 67. Ke4 {[%clk 0:00:04]}  Kg3 {[%clk 0:01:22]} 68. Qf3+ {[%clk 0:00:04]} 1-0


[Site "https://www.chess.com"]

[Event "Titled Tuesday Blitz April 19 Early 2022"]
[White "Shimanov, Aleksandr"]
[Black "Kezin, Roman"]
[WhiteFideId "4198603"]
[BlackFideId "24124621"]
[WhiteElo "2636"]
[BlackElo "2570"]
[Result "0-1"]
[Round "07"]
[TimeControl "180+1"]
[Date "2022.04.19"]
[WhiteClock "0:01:26"]
[BlackClock "0:00:43"]

1. d4 {[%clk 0:03:00]}  d5 {[%clk 0:02:59]} 2. Nc3 {[%clk 0:03:00]}  Nf6 {[%clk 0:02:57]} 3. Bf4 {[%clk 0:03:00]}  a6 {[%clk 0:02:55]} 4. e3 {[%clk 0:03:00]}  e6 {[%clk 0:02:55]} 5. g4 {[%clk 0:03:00]}  c5 {[%clk 0:02:51]} 6. g5 {[%clk 0:02:59]}  Nfd7 {[%clk 0:02:50]} 7. Nf3 {[%clk 0:02:44]}  Nc6 {[%clk 0:02:47]} 8. h4 {[%clk 0:02:43]}  b5 {[%clk 0:02:38]} 9. a3 {[%clk 0:02:42]}  Nb6 {[%clk 0:02:30]} 10. Ne5 {[%clk 0:02:37]}  Bb7 {[%clk 0:02:26]} 11. Qf3 {[%clk 0:02:18]}  cxd4 {[%clk 0:01:26]} 12. Nxc6 {[%clk 0:01:42]}  Bxc6 {[%clk 0:01:26]} 13. exd4 {[%clk 0:01:43]}  Bd6 {[%clk 0:01:24]} 14. Bd3 {[%clk 0:01:42]}  Qc7 {[%clk 0:01:04]} 15. Bxd6 {[%clk 0:01:31]}  Qxd6 {[%clk 0:01:05]} 16. Qg3 {[%clk 0:01:26]}  Qxg3 {[%clk 0:00:43]} 0-1


[Site "https://www.chess.com"]